bitfinex/quotes_ETHUSD_20251127
["timestamp","ask_amount","ask_price","bid_price","bid_amount"]
[1764229990419,0.002,3035.0,3034.9,4.70635005]
[1764229993929,0.002,3035.0,3034.9,1.41134857]
[1764229994143,0.002,3035.0,3034.9,4.27840148]
[1764229998608,0.002,3035.0,3034.9,0.4853]
[1764229999042,0.002,3035.0,3034.9,3.78030148]
[1764229999230,0.002,3035.0,3034.9,4.26980148]
[1764230005951,0.002,3035.0,3034.9,3.78030148]
[1764230006147,0.002,3035.0,3034.9,0.4853]
[1764230006451,0.4635,3035.0,3034.9,0.001]
[1764230006745,4.54180635,3035.0,3034.9,0.001]
[1764230006951,5.61881974,3035.0,3034.9,0.001]
[1764230007528,2.32392683,3035.0,3034.9,0.001]
[1764230007950,2.53192683,3035.0,3034.9,0.001]
[1764230008650,1.84862683,3035.0,3034.9,0.001]
[1764230008821,2.05662683,3035.0,3034.9,0.001]
[1764230009017,0.31011344,3035.0,3034.9,0.4536]
[1764230010935,1.24691344,3035.0,3034.9,0.001]
[1764230011141,4.18054659,3035.0,3034.9,0.001]
[1764230013551,7.4754395,3035.0,3034.9,0.001]
[1764230016225,4.18054659,3035.0,3034.9,0.001]
[1764230016426,4.94888885,3035.0,3034.9,0.001]
[1764230016826,8.24378176,3035.0,3034.9,0.001]
[1764230022950,8.45178176,3035.0,3034.9,0.001]
[1764230026046,8.45188931,3035.0,3034.9,0.001]
[1764230030974,1.28656325,3035.0,3034.9,0.5007]
[1764230031270,0.31022099,3035.0,3034.9,0.5007]
[1764230031448,0.51822099,3035.0,3034.9,0.9689]
[1764230031864,0.31022099,3035.0,3034.9,0.9689]
[1764230033272,0.31022099,3035.0,3034.9,1.39539821]
[1764230035461,0.31022099,3035.0,3034.9,0.9689]
[1764230036168,0.31022099,3035.0,3034.9,0.001]
[1764230036563,0.31022099,3035.0,3034.9,0.5007]
[1764230037980,0.31022099,3035.0,3034.9,0.9689]
[1764230039850,0.31022099,3035.0,3034.9,0.5007]
[1764230041181,0.31022099,3035.0,3034.9,0.001]
[1764230041678,0.31022099,3035.0,3034.9,0.5007]
[1764230042979,0.31022099,3035.0,3034.9,0.9689]
[1764230043178,0.76522099,3035.0,3034.9,0.001]
[1764230043549,1.22342099,3035.0,3034.9,0.001]
[1764230043754,0.76522099,3035.0,3034.9,0.001]
[1764230044254,0.31022099,3035.0,3034.9,0.001]
[1764230046854,0.31022099,3035.0,3034.9,0.9689]
[1764230047367,0.31022099,3035.0,3034.9,0.5007]
[1764230051293,0.78682099,3035.0,3034.9,0.001]
[1764230051590,1.26532099,3035.0,3034.9,0.001]
[1764230054081,4.5602139,3035.0,3034.9,0.001]
[1764230054395,2.36497364,3035.0,3034.9,0.001]
[1764230054612,2.36554917,3035.0,3034.9,0.001]
[1764230054774,0.78739652,3035.0,3034.9,0.001]
[1764230055698,1.24939652,3035.0,3034.9,0.001]
[1764230055864,4.54428943,3035.0,3034.9,0.001]
[1764230056973,7.2832516,3035.0,3034.9,0.001]
[1764230057170,8.36184598,3035.0,3034.9,0.001]
[1764230062815,7.89984598,3035.0,3034.9,0.001]
[1764230063015,8.36184598,3035.0,3034.9,0.001]
[1764230063522,9.49294409,3035.0,3034.9,0.001]
[1764230066933,1.13109811,3034.9,3034.7,0.001]
[1764230067237,9.17747187,3034.8,3034.7,0.001]
[1764230067541,10.52663608,3034.8,3034.7,0.001]
[1764230067723,9.5404087,3034.8,3034.7,0.001]
[1764230067939,9.63947187,3034.8,3034.7,0.001]
[1764230068302,12.93458192,3034.8,3034.7,0.001]
[1764230070141,13.82178481,3034.8,3034.7,0.001]
[1764230070538,10.98375947,3034.8,3034.7,0.001]
[1764230071007,13.72272164,3034.8,3034.7,0.001]
[1764230071203,12.83551875,3034.8,3034.7,0.001]
[1764230072708,19.17451875,3034.8,3034.7,0.001]
[1764230077738,19.27358192,3034.8,3034.7,0.001]
[1764230078937,20.16078481,3034.8,3034.7,0.001]
[1764230079335,20.16078481,3034.8,3034.2,0.001]
[1764230079336,0.405504,3034.6,3034.2,0.001]
[1764230079637,6.92181059,3034.4,3034.2,0.001]
[1764230079827,7.43860711,3034.4,3034.2,0.001]
[1764230080030,0.30879652,3034.4,3034.3,0.4813]
[1764230080232,0.51679652,3034.4,3034.3,0.946]
[1764230080738,3.81234094,3034.4,3034.3,0.946]
[1764230081139,6.55130311,3034.4,3034.3,0.4813]
[1764230081524,9.01835682,3034.4,3034.3,0.001]
[1764230081735,9.51605682,3034.4,3034.3,0.001]
[1764230083236,9.92156082,3034.4,3034.3,0.001]
[1764230084314,10.02062399,3034.4,3034.3,0.001]
[1764230085747,16.35962399,3034.4,3034.3,0.001]
[1764230086040,3.70126565,3034.2,3034.0,0.001]
[1764230086365,7.89421897,3034.1,3034.0,0.001]
[1764230087944,11.28915241,3034.1,3034.0,0.001]
[1764230088128,8.55019024,3034.1,3034.0,0.001]
[1764230088325,11.28915241,3034.1,3034.0,0.001]
[1764230088630,12.76254427,3034.1,3034.0,0.001]
[1764230089965,9.92451893,3034.1,3034.0,0.001]
[1764230093165,9.22931493,3034.1,3034.0,0.001]
[1764230093723,8.75061493,3034.1,3034.0,0.4813]
[1764230094156,8.54261493,3034.1,3034.0,0.4813]
[1764230094362,7.27722307,3034.1,3034.0,0.4813]
[1764230094558,4.3302609,3034.1,3034.0,0.946]
[1764230094738,4.5382609,3034.1,3034.0,0.946]
[1764230094938,7.27722307,3034.1,3034.0,0.946]
[1764230095461,7.27722307,3034.1,3034.0,0.4813]
[1764230099626,7.27722307,3034.1,3034.0,0.946]
[1764230100449,4.5382609,3034.1,3034.0,0.946]
[1764230100850,4.3302609,3034.1,3034.0,0.4813]
[1764230101155,5.59555937,3034.1,3034.0,0.4813]
[1764230107240,5.59555937,3034.1,3034.0,0.946]
[1764230107241,4.5382609,3034.1,3034.0,0.946]
[1764230107634,0.30879652,3034.1,3034.0,0.946]
[1764230108035,0.51679652,3034.1,3034.0,0.946]
[1764230110368,0.30879652,3034.1,3034.0,4.2419789]
[1764230110548,0.002,3034.2,3034.0,1.97380429]
[1764230110750,0.002,3034.2,3034.1,1.0918]
[1764230114758,0.31009664,3034.2,3034.1,1.0918]
[1764230115067,0.002,3034.2,3034.1,1.0918]
[1764230115267,0.31009664,3034.2,3034.1,1.0918]
[1764230115845,0.002,3034.2,3034.1,1.0918]
[1764230116272,0.31009664,3034.2,3034.1,1.0918]
[1764230116474,0.002,3034.2,3034.1,1.0918]
[1764230118290,0.31009664,3034.2,3034.1,1.0918]
[1764230118494,0.30800287,3034.3,3034.1,0.1854]
[1764230118695,3.27605673,3034.4,3034.3,0.4542]
[1764230119008,3.26946478,3034.4,3034.3,0.4542]
[1764230120191,3.50346827,3034.5,3034.3,0.4542]
[1764230120498,3.50346827,3034.5,3034.4,0.4542]
[1764230121195,6.79893654,3034.5,3034.1,0.1854]
[1764230121495,6.79893654,3034.5,3034.1,0.6376]
[1764230121698,3.50346827,3034.5,3034.1,0.6376]
[1764230121900,3.50346827,3034.5,3034.2,0.4522]
[1764230122685,3.50346827,3034.5,3034.4,0.4542]
[1764230123087,3.29546827,3034.5,3034.4,0.4542]
[1764230123298,3.50346827,3034.5,3034.4,0.4542]
[1764230123501,7.25233654,3034.5,3034.1,0.1854]
[1764230123677,7.72913654,3034.5,3034.1,0.1854]
[1764230123877,7.25233654,3034.5,3034.0,0.001]
[1764230124195,2.93590369,3034.3,3034.0,0.001]
[1764230124795,3.29576165,3034.2,3034.0,0.001]
[1764230124959,0.208,3034.1,3034.0,0.001]
[1764230125374,0.208,3034.1,3034.0,0.4552]
[1764230126298,0.208,3034.1,3034.0,0.9074]
[1764230128795,4.31648656,3034.5,3034.0,0.9074]
[1764230129008,4.31648656,3034.5,3034.4,0.6396]
[1764230129009,0.002,3034.5,3034.4,0.6396]
[1764230129220,0.21,3034.5,3034.4,1.0918]
[1764230129586,0.002,3034.5,3034.4,0.6396]
[1764230129778,0.21,3034.5,3034.4,1.48533615]
[1764230130608,0.51838002,3034.5,3034.4,1.48533615]
[1764230130982,0.51838002,3034.5,3034.4,1.0918]
[1764230132311,0.31038002,3034.5,3034.4,1.0918]
[1764230132640,0.21,3034.5,3034.4,4.38734442]
[1764230132908,0.51836993,3034.5,3034.1,0.1854]
[1764230133077,0.21,3034.5,3034.4,0.4542]
[1764230133278,0.51838265,3034.5,3034.4,0.4542]
[1764230134312,0.51838265,3034.5,3034.4,0.9064]
[1764230139332,0.31038265,3034.5,3034.4,4.20194442]
[1764230140215,0.31038265,3034.5,3034.4,3.74974442]
[1764230140527,0.31038265,3034.5,3034.4,1.2024203]
[1764230140835,0.31038265,3034.5,3034.4,0.9503]
[1764230141033,0.31038265,3034.5,3034.4,0.4542]
[1764230144533,0.31038265,3034.5,3034.4,0.4552]
[1764230146021,0.31038265,3034.5,3034.4,0.001]
[1764230146022,1.28038265,3034.5,3034.4,0.001]
[1764230149627,0.78828265,3034.5,3034.4,0.001]
[1764230149821,1.28038265,3034.5,3034.4,0.001]
[1764230150426,0.78828265,3034.5,3034.4,0.001]
[1764230152238,0.78850864,3034.5,3034.4,0.001]
[1764230154739,0.51860864,3034.5,3034.4,0.4575]
[1764230158045,0.99650864,3034.5,3034.4,0.001]
[1764230158747,1.48860864,3034.5,3034.4,0.001]
[1764230159425,0.99650864,3034.5,3034.4,0.001]
[1764230160418,1.48860864,3034.5,3034.4,0.001]
[1764230161043,0.99650864,3034.5,3034.4,0.001]
[1764230162692,0.51860864,3034.5,3034.4,0.001]
[1764230162820,0.51860864,3034.5,3034.4,0.4575]
[1764230163020,0.99650864,3034.5,3034.4,0.001]
[1764230163228,5.17748569,3034.5,3034.4,0.001]
[1764230164451,5.17748569,3034.5,3034.4,0.00595069]
[1764230165070,5.17748569,3034.5,3034.4,0.95855069]
[1764230165071,0.31060864,3034.5,3034.4,0.95855069]
[1764230165236,0.51860864,3034.5,3034.4,0.95855069]
[1764230166048,0.51860864,3034.5,3034.4,0.4575]
[1764230166319,0.31060864,3034.5,3034.4,0.4575]
[1764230166527,0.51860864,3034.5,3034.4,0.9536]
[1764230167359,0.51860864,3034.5,3034.4,1.3970632]
[1764230168530,0.51860864,3034.5,3034.4,0.9536]
[1764230169358,0.31060864,3034.5,3034.4,0.9536]
[1764230169857,0.31084929,3034.5,3034.4,0.9536]
[1764230174088,0.78564929,3034.5,3034.4,0.001]
[1764230174267,3.24675298,3034.5,3034.4,0.4601]
[1764230174470,0.51884929,3034.5,3034.4,0.9578]
[1764230174670,0.31084929,3034.5,3034.4,0.9578]
[1764230175493,0.31084929,3034.5,3034.4,0.4601]
[1764230175799,0.31084929,3034.5,3034.4,0.001]
[1764230175800,0.78564929,3034.5,3034.4,0.001]
[1764230178084,0.31084929,3034.5,3034.4,0.001]
[1764230178459,0.51884929,3034.5,3034.4,0.4601]
[1764230178770,0.51884929,3034.5,3034.4,0.9578]
[1764230179085,0.51884929,3034.5,3034.4,0.001]
[1764230179086,0.99364929,3034.5,3034.4,0.001]
[1764230179392,5.16003599,3034.5,3034.4,0.001]
[1764230180281,4.78648511,3034.5,3034.4,0.001]
[1764230182881,4.47763582,3034.5,3034.4,0.001]
[1764230183086,4.78655878,3034.5,3034.4,0.001]
[1764230183777,1.49112296,3034.5,3034.4,0.001]
[1764230184993,4.78655878,3034.5,3034.4,0.001]
[1764230185691,1.49112296,3034.5,3034.4,0.001]
[1764230185861,0.99372296,3034.5,3034.4,0.001]
[1764230186566,1.49112296,3034.5,3034.4,0.001]
[1764230186999,4.78655878,3034.5,3034.4,0.001]
[1764230188190,1.49112296,3034.5,3034.4,0.001]
[1764230189289,4.78655878,3034.5,3034.4,0.001]
[1764230190774,1.49112296,3034.5,3034.4,0.001]
[1764230191811,4.78655878,3034.5,3034.4,0.001]
[1764230193315,5.86892506,3034.5,3034.4,0.001]
[1764230193614,8.60878453,3034.5,3034.4,0.001]
[1764230194607,5.86892506,3034.5,3034.4,0.001]
[1764230195720,3.81435878,3034.5,3034.4,0.001]
[1764230195921,0.21,3034.5,3034.4,0.4601]
[1764230196133,0.31094023,3034.5,3034.4,0.4601]
[1764230196300,0.51894023,3034.5,3034.4,0.9578]
[1764230196812,0.31094023,3034.5,3034.4,0.9578]
[1764230198324,0.31094023,3034.5,3034.4,1.38315174]
[1764230199307,0.31094023,3034.5,3034.4,4.67869616]
[1764230199623,0.31094023,3034.5,3034.4,1.38315174]
[1764230200004,0.31094023,3034.5,3034.4,0.9578]
[1764230200727,0.31094023,3034.5,3034.4,4.25334442]
[1764230201320,0.002,3034.5,3034.4,4.25334442]
[1764230204003,0.002,3034.5,3034.4,5.13832701]
[1764230204210,0.002,3034.5,3034.4,6.99320389]
[1764230204438,0.002,3034.5,3034.4,9.32513728]
[1764230204813,0.002,3034.5,3034.4,8.44015469]
[1764230206029,0.002,3034.5,3034.4,5.70029522]
[1764230206825,0.002,3034.5,3034.4,8.44015469]
[1764230207408,0.002,3034.5,3034.4,5.70029522]
[1764230210230,0.002,3034.5,3034.4,6.58650509]
[1764230213044,0.002,3034.5,3034.4,5.70029522]
[1764230213844,0.002,3034.5,3034.4,5.20259522]
[1764230214335,0.002,3034.5,3034.4,5.68489522]
[1764230214738,0.002,3034.5,3034.4,5.20259522]
[1764230215617,0.002,3034.5,3034.4,5.68489522]
[1764230216251,0.002,3034.5,3034.4,1.4479508]
[1764230216252,0.9629,3034.5,3034.4,1.4479508]
[1764230216466,0.9629,3034.5,3034.4,0.001]
[1764230217437,0.4909,3034.5,3034.4,0.001]
[1764230218247,0.9629,3034.5,3034.4,0.001]
[1764230220955,1.27116196,3034.5,3034.4,0.001]
[1764230222551,0.79916196,3034.5,3034.4,0.001]
[1764230223653,1.27116196,3034.5,3034.4,0.001]
[1764230224449,0.79916196,3034.5,3034.4,0.001]
[1764230224656,0.79916196,3034.5,3034.4,0.4552]
[1764230224657,0.002,3034.5,3034.4,0.4552]
[1764230225022,0.002,3034.5,3034.4,3.75074442]
[1764230225236,0.002,3034.5,3034.4,4.23304442]
[1764230225434,0.002,3034.5,3034.4,4.98592073]
[1764230228730,0.002,3034.5,3034.4,5.8721306]
[1764230229743,0.002,3034.5,3034.4,4.98592073]
[1764230233735,0.002,3034.5,3034.4,5.8721306]
[1764230234453,0.002,3034.5,3034.4,8.61199007]
[1764230234957,0.002,3034.5,3034.4,7.7257802]
[1764230235465,0.002,3034.5,3034.4,8.90372315]
[1764230235839,0.002,3034.5,3034.4,8.65937431]
[1764230236147,0.002,3034.5,3034.4,10.4257616]
[1764230236348,0.002,3034.5,3034.4,9.06487831]
[1764230236661,0.002,3034.5,3034.4,6.45697738]
[1764230236846,0.002,3034.5,3034.4,8.22336467]
[1764230238371,0.002,3034.5,3034.4,6.45697738]
[1764230249954,0.002,3034.5,3034.4,9.39040695]
[1764230250754,0.002,3034.5,3034.4,11.15679424]
[1764230251180,0.002,3034.5,3034.4,8.22336467]
[1764230255382,0.002,3034.5,3034.4,6.45697738]
[1764230256915,0.002,3034.5,3034.4,5.97467738]
[1764230257189,0.497,3034.5,3034.4,6.88904267]
[1764230257362,0.9536,3034.5,3034.4,5.54526848]
[1764230257775,0.497,3034.5,3034.4,5.54526848]
[1764230259371,0.497,3034.5,3034.4,4.36209707]
[1764230260688,0.497,3034.5,3034.4,5.54579674]
[1764230262659,0.002,3034.5,3034.4,5.54579674]
[1764230262867,0.002,3034.5,3034.4,7.42652117]
[1764230263572,0.002,3034.5,3034.4,6.2428215]
[1764230263886,0.002,3034.5,3034.4,7.42749464]
[1764230264483,0.002,3034.5,3034.4,6.2428215]
[1764230266191,0.002,3034.5,3034.4,5.7532215]
[1764230266192,0.9338,3034.5,3034.4,5.7532215]
[1764230266373,0.9338,3034.5,3034.4,4.36209707]
[1764230266974,0.9338,3034.5,3034.4,4.82154458]
[1764230267491,0.9338,3034.5,3034.4,4.61354458]
[1764230267695,0.9338,3034.5,3034.4,3.42850296]
[1764230268101,0.9338,3034.5,3034.4,0.001]
[1764230268966,0.9338,3034.5,3034.4,0.88959747]
[1764230270694,0.9338,3034.5,3034.4,4.18514189]
[1764230271296,0.002,3034.5,3034.4,4.67474189]
[1764230271999,0.9338,3034.5,3034.4,4.18514189]
[1764230273371,0.9338,3034.5,3034.4,3.29654442]
[1764230274184,0.9338,3034.5,3034.4,4.18514189]
[1764230274501,0.9338,3034.5,3034.4,3.29654442]
[1764230274706,0.4568,3034.5,3034.4,3.29654442]
[1764230276198,0.4568,3034.5,3034.4,4.18514189]
[1764230277003,0.002,3034.5,3034.4,4.18514189]
[1764230277173,0.002,3034.5,3034.4,4.67474189]
[1764230278604,0.4568,3034.5,3034.4,4.18514189]
[1764230279707,0.002,3034.5,3034.4,4.18514189]
[1764230279891,0.002,3034.5,3034.4,6.31462795]
[1764230280202,0.002,3034.5,3034.4,7.5781721]
[1764230280611,0.002,3034.5,3034.4,7.0880721]
[1764230280791,0.002,3034.5,3034.4,6.5984721]
[1764230281581,0.002,3034.5,3034.4,7.0880721]
[1764230285413,0.002,3034.5,3034.4,5.90303048]
[1764230286010,0.002,3034.5,3034.4,5.41343048]
[1764230286186,0.4568,3034.5,3034.4,5.41343048]
[1764230287022,0.002,3034.5,3034.4,5.90303048]
[1764230291605,0.002,3034.5,3034.4,5.41343048]
[1764230293237,0.9417,3034.5,3034.4,5.41343048]
[1764230294028,0.472,3034.5,3034.4,5.41343048]
[1764230295407,0.002,3034.5,3034.4,5.87773048]
[1764230297649,0.002,3034.5,3034.4,5.41343048]
[1764230298446,0.002,3034.5,3034.4,5.87773048]
[1764230308450,0.002,3034.5,3034.4,7.65179977]
[1764230310428,0.002,3034.5,3034.4,9.49795976]
[1764230310628,0.002,3034.5,3034.4,12.44448504]
[1764230310828,0.002,3034.5,3034.4,12.06001021]
[1764230311232,0.002,3034.5,3034.4,9.70595976]
[1764230311634,0.002,3034.5,3034.4,12.06001021]
[1764230312258,0.002,3034.5,3034.4,11.58381021]
[1764230312558,0.002,3034.5,3034.4,9.70595976]
[1764230316225,0.002,3034.5,3034.4,9.22975976]
[1764230316625,0.002,3034.5,3034.4,9.70595976]
[1764230318154,0.002,3034.5,3034.4,6.49123448]
[1764230318353,0.4605,3034.5,3034.4,6.02693448]
[1764230318762,0.002,3034.5,3034.4,6.02693448]
[1764230318959,0.002,3034.5,3034.4,6.49123448]
[1764230319162,0.002,3034.5,3034.4,9.22975976]
[1764230320734,0.002,3034.5,3034.4,9.70815976]
[1764230323459,0.09061,3034.9,3034.4,16.2992486]
[1764230323633,0.64831637,3037.7,3034.8,1.18254682]
[1764230323833,2.73852528,3035.6,3035.0,0.88691084]
[1764230324046,2.73852528,3035.4,3035.0,0.88691084]
[1764230324244,0.4176,3035.1,3034.9,2.60207325]
[1764230324449,0.4176,3035.0,3034.9,2.60207325]
[1764230325670,0.4176,3035.0,3034.9,5.89707473]
[1764230326665,0.002,3035.1,3034.9,5.01016389]
[1764230326873,0.002,3035.1,3035.0,1.22262438]
[1764230327476,0.002,3035.1,3035.0,1.35456507]
[1764230327844,0.002,3035.1,3035.0,4.64945798]
[1764230329974,0.4196,3035.1,3035.0,4.64945798]
[1764230330137,0.4196,3035.1,3035.0,3.4268336]
[1764230331862,0.002,3035.1,3035.0,3.4268336]
[1764230332062,0.4196,3035.1,3035.0,3.4268336]
[1764230338248,0.4196,3035.1,3035.0,4.60938042]
[1764230338469,0.4196,3035.1,3035.0,3.4268336]
[1764230339266,0.4196,3035.1,3035.0,4.60938042]
[1764230342162,0.4196,3035.1,3035.0,4.61038042]
[1764230343683,0.002,3035.1,3035.0,4.61038042]
[1764230343981,0.002,3035.1,3035.0,6.98470122]
[1764230345976,0.002,3035.1,3035.0,6.50630122]
[1764230346981,0.002,3035.1,3035.0,6.04900122]
[1764230349055,0.002,3035.1,3035.0,5.3237544]
[1764230349380,0.002,3035.1,3035.0,5.7878544]
[1764230354757,0.30894629,3035.4,3035.0,9.08274731]
[1764230354987,2.73852528,3035.8,3035.3,0.88764156]
[1764230355184,0.66116568,3035.8,3035.3,0.88764156]
[1764230355389,0.38731315,3035.8,3035.3,0.88764156]
[1764230355887,2.73852528,3035.4,3035.3,0.88764156]
[1764230356055,2.73852528,3035.4,3035.1,1.18352209]
[1764230356056,2.73852528,3035.4,3035.1,0.88764156]
[1764230356466,2.73852528,3035.6,3035.1,0.88764156]
[1764230357806,2.73852528,3035.6,3035.1,4.18239249]
[1764230358088,0.60326908,3035.5,3035.1,0.88764156]
[1764230358872,2.73852528,3035.4,3035.1,0.88764156]
[1764230359868,0.60326908,3035.5,3035.1,0.88764156]
[1764230360496,0.60326908,3035.5,3035.1,4.18239081]
[1764230361993,0.002,3036.5,3035.5,0.405504]
[1764230362195,0.002,3036.5,3035.3,3.65928404]
[1764230362196,0.002,3036.5,3036.3,0.4879]
[1764230362768,0.002,3036.5,3036.3,0.6197924]
[1764230362966,0.002,3036.5,3036.3,1.0923924]
[1764230363190,0.002,3036.5,3036.3,1.97674254]
[1764230364072,0.002,3036.5,3036.3,4.30972473]
[1764230364276,0.002,3036.5,3036.3,3.42537459]
[1764230365371,0.002,3036.5,3036.3,3.29348219]
[1764230369406,0.002,3036.5,3036.3,4.05874017]
[1764230375208,0.002,3036.5,3036.3,3.29348219]
[1764230375575,0.002,3036.5,3035.8,0.88435014]
[1764230375779,0.002,3036.5,3035.8,6.79604926]
[1764230375995,0.002,3036.5,3035.8,6.92796515]
[1764230376710,0.002,3036.5,3035.9,0.4726]
[1764230377285,0.002,3036.5,3035.8,10.22198978]
[1764230377503,0.002,3036.5,3036.1,6.5873983]
[1764230377704,0.002,3036.5,3036.2,0.4726]
[1764230377896,0.002,3036.5,3036.1,6.7850983]
[1764230377897,0.002,3036.5,3036.1,6.5873983]
[1764230379914,0.002,3036.5,3036.0,6.58761528]
[1764230380109,0.002,3036.5,3036.0,7.76397748]
[1764230380616,0.002,3036.5,3036.1,0.4525]
[1764230382011,0.002,3036.5,3036.2,3.29359067]
[1764230382217,0.002,3036.5,3036.0,7.76390029]
[1764230382788,0.002,3036.5,3036.0,8.21640029]
[1764230383089,0.002,3036.5,3036.0,7.76390029]
[1764230383289,0.002,3036.5,3036.0,3.29373045]
[1764230384517,0.002,3036.5,3035.9,6.58780334]
[1764230389719,0.30985045,3036.5,3035.9,3.29388721]
[1764230390024,0.002,3036.5,3035.9,3.29388721]
[1764230390318,0.31002373,3036.4,3035.9,3.29388721]
[1764230390696,0.31002373,3036.4,3035.9,6.58780334]
[1764230391294,0.30802373,3036.3,3035.9,7.47215348]
[1764230391493,0.002,3036.4,3035.9,7.47215348]
[1764230391692,0.30855292,3036.3,3035.9,7.47215348]
[1764230391894,0.002,3036.4,3035.9,7.47215348]
[1764230392093,0.30855292,3036.3,3035.9,4.17823735]
[1764230392294,0.002,3036.4,3035.9,4.17823735]
[1764230392598,0.30854028,3036.3,3035.9,4.17823735]
[1764230392796,0.002,3036.4,3035.9,4.17823735]
[1764230392997,0.30854025,3036.3,3035.9,4.17823735]
[1764230393325,0.002,3036.4,3035.9,4.17823735]
[1764230393519,0.30855935,3036.3,3035.9,4.17823735]
[1764230393715,0.002,3036.4,3035.9,4.17823735]
[1764230393918,0.30855935,3036.3,3035.9,4.17823735]
[1764230394218,0.002,3036.4,3035.9,7.47215348]
[1764230394425,0.30857717,3036.3,3035.9,7.47215348]
[1764230394621,0.002,3036.4,3035.9,7.47215348]
[1764230394810,0.30857717,3036.3,3035.9,7.47215348]
[1764230395010,0.002,3036.4,3036.0,0.4525]
[1764230395215,0.30857717,3036.3,3036.0,1.33685014]
[1764230395435,0.002,3036.4,3036.1,3.29369915]
[1764230395618,0.30860069,3036.3,3036.1,3.29369915]
[1764230395818,0.002,3036.4,3036.1,3.29369915]
[1764230396127,0.30860069,3036.3,3036.1,3.29369915]
[1764230396423,0.002,3036.4,3036.1,3.29369915]
[1764230396625,0.30860587,3036.3,3036.1,3.29369915]
[1764230396794,0.002,3036.4,3036.1,3.29369915]
[1764230396999,0.30860584,3036.3,3036.0,4.17811892]
[1764230397324,0.002,3036.4,3036.0,4.17811892]
[1764230397515,0.30861411,3036.3,3036.0,4.17811892]
[1764230397720,0.002,3036.4,3036.0,4.17811892]
[1764230397920,0.30861409,3036.3,3036.0,4.17811892]
[1764230398118,0.002,3036.4,3036.0,4.17811892]
[1764230398314,0.30861411,3036.3,3036.0,7.47192656]
[1764230398529,0.002,3036.4,3036.0,7.47192656]
[1764230398825,0.30862626,3036.3,3036.0,7.47192656]
[1764230399027,0.002,3036.4,3036.0,7.47192656]
[1764230399224,0.30862626,3036.3,3036.0,4.17811892]
[1764230399431,0.002,3036.4,3036.0,0.88435014]
[1764230399603,0.30864227,3036.3,3036.0,0.88435014]
[1764230399798,0.3525163,3036.4,3036.0,0.88435014]
[1764230400025,0.30864227,3036.3,3036.0,4.17814906]
[1764230400228,0.002,3036.4,3036.0,3.29379892]
[1764230400525,0.002,3036.4,3036.0,4.1804097]
[1764230400731,0.30866046,3036.3,3036.0,4.1804097]
[1764230401028,0.30866046,3036.2,3036.0,4.1804097]
[1764230401226,0.21,3036.4,3036.0,7.47421734]
[1764230401426,0.308685,3036.3,3036.1,1.55781078]
[1764230401633,0.21,3036.4,3036.1,2.01031078]
[1764230401802,0.30868129,3036.3,3036.2,3.29359067]
[1764230402002,0.30868129,3036.3,3036.1,4.1802803]
[1764230402231,0.21,3036.4,3036.0,4.18039472]
[1764230402526,0.30871623,3036.3,3036.0,7.47420236]
[1764230402733,0.30871623,3036.2,3036.0,7.92670236]
[1764230402903,0.002,3036.4,3036.0,7.92670236]
[1764230403102,0.30872019,3036.3,3036.0,7.92670236]
[1764230403431,0.30875917,3036.2,3036.0,4.18039472]
[1764230403624,0.002,3036.4,3035.9,0.88661078]
[1764230403802,0.30876881,3036.3,3035.9,0.88661078]
[1764230403997,0.30876881,3036.2,3035.9,0.88661078]
[1764230404203,0.30876881,3036.1,3035.9,4.18051153]
[1764230404511,0.002,3036.4,3035.9,4.18051153]
[1764230404831,0.30880898,3036.3,3035.9,7.47442766]
[1764230405128,0.30880898,3036.2,3036.0,0.88661078]
[1764230405335,0.30880898,3036.1,3035.9,4.63301153]
[1764230405631,0.002,3036.4,3036.0,0.88661078]
[1764230405821,0.30886668,3036.3,3036.0,4.18041391]
[1764230406003,0.30886668,3036.2,3036.0,0.88661078]
[1764230406204,0.30886668,3036.1,3035.9,0.88661078]
[1764230406507,0.30886668,3036.0,3035.9,0.88661078]
[1764230407212,0.30886668,3036.0,3035.8,4.18159661]
[1764230407406,0.002,3036.4,3035.9,0.4897]
[1764230407613,0.30881112,3036.3,3035.9,0.4897]
[1764230407828,0.30881112,3036.2,3035.9,0.4897]
[1764230408035,0.30881112,3036.1,3035.9,3.78360788]
[1764230408326,0.30881112,3036.0,3035.9,0.4897]
[1764230408629,0.30881112,3036.0,3035.8,0.001]
[1764230408827,0.30881112,3035.9,3035.8,0.001]
[1764230414625,6.53641718,3035.9,3035.8,0.001]
[1764230414818,0.30881112,3035.9,3035.8,0.001]
[1764230415239,0.51681112,3035.9,3035.8,0.001]
[1764230415415,0.51681112,3035.9,3035.8,0.4949]
[1764230415612,0.51681112,3035.9,3035.8,1.36541281]
[1764230415613,0.30881112,3035.9,3035.8,1.36541281]
[1764230418343,0.30881112,3035.9,3035.8,0.9865]
[1764230418649,0.30881112,3035.9,3035.8,0.4949]
[1764230419024,0.30881112,3035.9,3035.8,0.001]
[1764230421643,0.30881112,3035.9,3035.8,0.4949]
[1764230421845,0.30881112,3035.9,3035.8,0.001]
[1764230423028,3.04581203,3035.9,3035.8,0.001]
[1764230423238,3.35059323,3035.9,3035.8,0.001]
[1764230423443,6.64450936,3035.9,3035.8,0.001]
[1764230424342,3.90750845,3035.9,3035.8,0.001]
[1764230424545,6.64450936,3035.9,3035.8,0.001]
[1764230427458,6.64650936,3035.9,3035.8,0.001]
[1764230428156,0.31081112,3035.9,3035.8,0.001]
[1764230428358,0.31081112,3035.9,3035.8,0.9865]
[1764230428863,0.002,3035.9,3035.8,0.9865]
[1764230430769,0.002,3035.9,3035.8,4.28052463]
[1764230438845,0.002,3035.9,3035.8,7.01752554]
[1764230439044,0.002,3035.9,3035.8,8.37810621]
[1764230439279,0.002,3035.9,3035.8,9.10370032]
[1764230439447,0.002,3035.9,3035.8,9.9903111]